fUSD/lending_fUSD_20250620
["ID","MTS","AMOUNT","RATE_DAILY","PERIOD"]
[366790220,1750456254553,-490.0,0.00025888,4]
[366790221,1750456254563,-490.0,0.00025888,4]
[366790222,1750456254574,-490.0,0.00025888,4]
[366790223,1750456254584,-490.0,0.00025888,4]
[366790224,1750456254593,-490.0,0.00025888,4]
[366790225,1750456254604,-490.0,0.00025888,4]
[366790226,1750456254614,-490.0,0.00025888,4]
[366790227,1750456254625,-490.0,0.00025888,4]
[366790228,1750456254635,-490.0,0.00025888,4]
[366790229,1750456254645,-490.0,0.00025888,4]
[366790230,1750456254655,-490.0,0.00025888,4]
[366790231,1750456254664,-490.0,0.00025888,4]
[366790232,1750456254674,-490.0,0.00025888,4]
[366790233,1750456254684,-490.0,0.00025888,4]
[366790234,1750456254694,-490.0,0.00025888,4]
[366790235,1750456254704,-490.0,0.00025888,4]
[366790236,1750456254714,-490.0,0.00025888,4]
[366790237,1750456254724,-490.0,0.00025888,4]
[366790238,1750456254734,-490.0,0.00025888,4]
[366790239,1750456254744,-490.0,0.00025888,4]
[366790240,1750456254755,-490.0,0.00025888,4]
[366790241,1750456254766,-490.0,0.00025888,4]
[366790242,1750456254776,-490.0,0.00025888,4]
[366790243,1750456254786,-832.74,0.00025888,4]
[366790244,1750456254796,-490.0,0.00025888,4]
[366790245,1750456254806,-490.0,0.00025888,4]
[366790246,1750456254816,-490.0,0.00025888,4]
[366790247,1750456254826,-490.0,0.00025888,4]
[366790248,1750456254836,-490.0,0.00025888,4]
[366790249,1750456254846,-490.0,0.00025888,4]
[366790250,1750456254856,-490.0,0.00025888,4]
[366790251,1750456254866,-759.91,0.00025888,4]
[366790252,1750456254877,-420.0,0.00025888,4]
[366790253,1750456254888,-490.0,0.00025888,4]
[366790254,1750456254900,-510.05186469,0.00025888,4]
[366790255,1750456254910,-490.0,0.00025888,4]
[366790256,1750456254921,-490.0,0.00025888,4]
[366790257,1750456254931,-490.0,0.00025888,4]
[366790258,1750456254941,-490.0,0.00025888,2]
[366790259,1750456254951,-490.0,0.00025888,4]
[366790260,1750456254961,-490.0,0.00025888,4]
[366790261,1750456254972,-490.0,0.00025888,4]
[366790262,1750456254982,-495.02815139,0.00025888,4]
[366790263,1750456254992,-490.0,0.00025888,4]
[366790264,1750456255002,-490.0,0.00025888,4]
[366790265,1750456255013,-490.0,0.00025888,4]
[366790266,1750456255023,-490.0,0.00025888,4]
[366790267,1750456255034,-490.0,0.00025888,4]
[366790268,1750456255044,-420.0,0.00025888,4]
[366790269,1750456255055,-490.0,0.00025888,4]
[366790270,1750456255065,-490.0,0.00025888,4]
[366790271,1750456255076,-490.0,0.00025888,4]
[366790272,1750456255088,-490.0,0.00025888,4]
[366790273,1750456255098,-490.0,0.00025888,4]
[366790274,1750456255109,-490.0,0.00025888,4]
[366790275,1750456255120,-490.0,0.00025888,4]
[366790276,1750456255130,-490.0,0.00025888,4]
[366790277,1750456255141,-490.0,0.00025888,4]
[366790278,1750456255151,-490.0,0.00025888,4]
[366790279,1750456255162,-490.0,0.00025888,4]
[366790280,1750456255173,-664.71,0.00025888,4]
[366790281,1750456255190,-490.0,0.00025888,4]
[366790282,1750456255202,-490.0,0.00025888,4]
[366790283,1750456255213,-490.0,0.00025888,4]
[366790284,1750456255225,-490.0,0.00025888,4]
[366790285,1750456255236,-490.0,0.00025888,4]
[366790286,1750456255247,-517.49,0.00025888,4]
[366790287,1750456255259,-490.0,0.00025888,4]
[366790288,1750456255269,-509.17121393,0.00025888,4]
[366790289,1750456255281,-490.0,0.00025888,4]
[366790290,1750456255292,-490.0,0.00025888,4]
[366790291,1750456255303,-490.0,0.00025888,4]
[366790292,1750456255314,-490.0,0.00025888,4]
[366790293,1750456255325,-1203.35,0.00025888,4]
[366790294,1750456255337,-566.37241652,0.00025888,4]
[366790295,1750456255351,-490.0,0.00025888,4]
[366790296,1750456255362,-490.0,0.00025888,4]
[366790297,1750456255374,-490.0,0.00025888,4]
[366790298,1750456255385,-1207.0,0.00025888,4]
[366790299,1750456255398,-490.0,0.00025888,4]
[366790300,1750456255410,-490.0,0.00025888,4]
[366790301,1750456255420,-490.0,0.00025888,4]
[366790302,1750456255431,-490.0,0.00025888,4]
[366790303,1750456255443,-490.0,0.00025888,4]
[366790304,1750456255455,-490.0,0.00025888,4]
[366790305,1750456255466,-490.0,0.00025888,4]
[366790306,1750456255476,-490.0,0.00025888,4]
[366790307,1750456255487,-490.0,0.00025888,4]
[366790308,1750456255501,-490.0,0.00025888,4]
[366790309,1750456255511,-490.0,0.00025888,4]
[366790310,1750456255522,-490.0,0.00025888,4]
[366790311,1750456255532,-490.0,0.00025888,4]
[366790312,1750456255543,-490.0,0.00025888,4]
[366790313,1750456255554,-490.0,0.00025888,4]
[366790314,1750456255565,-490.0,0.00025888,4]
[366790315,1750456255575,-490.0,0.00025888,4]
[366790316,1750456255586,-850.34,0.00025888,4]
[366790317,1750456255597,-490.0,0.00025888,4]
[366790318,1750456255607,-490.0,0.00025888,4]
[366790319,1750456255624,-490.0,0.00025888,4]
[366790320,1750456255636,-490.0,0.00025888,4]
[366790321,1750456255648,-490.0,0.00025888,4]
[366790322,1750456255659,-490.0,0.00025888,4]
[366790323,1750456255670,-490.0,0.00025888,4]
[366790324,1750456255680,-490.0,0.00025888,4]
[366790325,1750456255692,-490.0,0.00025888,4]
[366790326,1750456255704,-490.0,0.00025888,4]
[366790327,1750456255715,-490.0,0.00025888,4]
[366790328,1750456255726,-490.0,0.00025888,4]
[366790329,1750456255738,-490.0,0.00025888,4]
[366790330,1750456255749,-490.0,0.00025888,4]
[366790331,1750456255760,-490.0,0.00025888,4]
[366790332,1750456255772,-490.0,0.00025888,4]
[366790333,1750456255783,-490.0,0.00025888,4]
[366790334,1750456255795,-490.0,0.00025888,4]
[366790335,1750456255809,-490.0,0.00025888,4]
[366790336,1750456255819,-490.0,0.00025888,4]
[366790337,1750456255831,-490.0,0.00025888,4]
[366790338,1750456255841,-490.0,0.00025888,4]
[366790339,1750456255851,-460.49625055,0.00025888,4]
[366790340,1750456255862,-490.0,0.00025888,4]
[366790341,1750456255872,-490.0,0.00025888,4]
[366790342,1750456255883,-490.0,0.00025888,4]
[366790343,1750456255894,-300.0,0.00025888,4]
[366790344,1750456255904,-490.0,0.00025888,4]
[366790345,1750456255917,-490.0,0.00025888,4]
[366790346,1750456255928,-420.0,0.00025888,4]
[366790347,1750456255939,-490.0,0.00025888,4]
[366790348,1750456255951,-490.0,0.00025888,4]
[366790349,1750456255962,-420.0,0.00025888,4]
[366790350,1750456255973,-490.0,0.00025888,4]
[366790351,1750456255984,-490.0,0.00025888,4]
[366790352,1750456255995,-490.0,0.00025888,4]
[366790353,1750456256006,-490.0,0.00025888,4]
[366790354,1750456256017,-490.0,0.00025888,4]
[366790355,1750456256027,-490.0,0.00025888,4]
[366790356,1750456256044,-420.0,0.00025888,4]
[366790357,1750456256055,-490.0,0.00025888,4]
[366790358,1750456256066,-490.0,0.00025888,4]
[366790359,1750456256077,-490.0,0.00025888,4]
[366790360,1750456256088,-490.0,0.00025888,4]
[366790361,1750456256099,-490.0,0.00025888,4]
[366790362,1750456256110,-532.24,0.00025888,4]
[366790363,1750456256120,-490.0,0.00025888,4]
[366790364,1750456256131,-490.0,0.00025888,4]
[366790365,1750456256142,-490.0,0.00025888,4]
[366790366,1750456256153,-490.0,0.00025888,4]
[366790367,1750456256164,-490.0,0.00025888,4]
[366790368,1750456256176,-490.0,0.00025888,4]
[366790369,1750456256194,-490.0,0.00025888,4]
[366790370,1750456256208,-490.0,0.00025888,4]
[366790371,1750456256219,-490.0,0.00025888,4]
[366790372,1750456256230,-490.0,0.00025888,4]
[366790373,1750456256243,-490.0,0.00025888,4]
[366790374,1750456256255,-490.0,0.00025888,4]
[366790375,1750456256266,-490.0,0.00025888,4]
[366790376,1750456256278,-490.0,0.00025888,4]
[366790377,1750456256289,-490.0,0.00025888,4]
[366790378,1750456256299,-490.0,0.00025888,4]
[366790379,1750456256310,-490.0,0.00025888,4]
[366790380,1750456256322,-490.0,0.00025888,4]
[366790381,1750456256333,-490.0,0.00025888,4]
[366790382,1750456256345,-490.0,0.00025888,4]
[366790383,1750456256615,-490.0,0.00025888,4]
[366790384,1750456256626,-423.1,0.00025888,4]
[366790385,1750456256636,-490.0,0.00025888,4]
[366790386,1750456256646,-490.0,0.00025888,4]
[366790387,1750456256656,-490.0,0.00025888,4]
[366790388,1750456256666,-490.0,0.00025888,4]
[366790389,1750456256675,-490.0,0.00025888,4]
[366790390,1750456256685,-403.8386684,0.00025888,4]
[366790391,1750456256703,-86.1613316,0.00025888,4]
[366790392,1750456256712,-490.0,0.00025888,4]
[366790393,1750456256722,-490.0,0.00025888,4]
[366790394,1750456256731,-490.0,0.00025888,4]
[366790395,1750456256741,-490.0,0.00025888,4]
[366790396,1750456256751,-490.0,0.00025888,4]
[366790397,1750456256760,-490.0,0.00025888,4]
[366790398,1750456256770,-500.0,0.00025888,4]
[366790399,1750456256779,-490.0,0.00025888,4]
[366790400,1750456256789,-490.0,0.00025888,4]
[366790401,1750456256798,-490.0,0.00025888,4]
[366790402,1750456256808,-571.99389031,0.00025888,4]
[366790403,1750456256818,-490.0,0.00025888,4]
[366790404,1750456256827,-490.0,0.00025888,4]
[366790405,1750456256837,-490.0,0.00025888,4]
[366790406,1750456256846,-572.17,0.00025888,4]
[366790407,1750456256855,-490.0,0.00025888,4]
[366790408,1750456256864,-490.0,0.00025888,4]
[366790409,1750456256874,-490.0,0.00025888,4]
[366790410,1750456256883,-490.0,0.00025888,4]
[366790411,1750456256893,-490.0,0.00025888,4]
[366790412,1750456256903,-490.0,0.00025888,4]
[366790413,1750456256913,-490.0,0.00025888,4]
[366790414,1750456256923,-490.0,0.00025888,4]
[366790415,1750456256933,-490.0,0.00025888,4]
[366790416,1750456256942,-490.0,0.00025888,4]
[366790417,1750456256952,-490.0,0.00025888,4]
[366790418,1750456256962,-561.36,0.00025888,4]
[366790419,1750456256972,-490.0,0.00025888,4]
[366790420,1750456256982,-776.21,0.00025888,4]
[366790421,1750456256992,-490.0,0.00025888,4]
[366790422,1750456257002,-490.0,0.00025888,4]
[366790423,1750456257013,-490.0,0.00025888,4]
[366790424,1750456257023,-490.0,0.00025888,4]
[366790425,1750456257034,-490.0,0.00025888,4]
[366790426,1750456257044,-490.0,0.00025888,4]
[366790427,1750456257055,-490.0,0.00025888,4]
[366790428,1750456257065,-490.0,0.00025888,4]
[366790429,1750456257076,-490.0,0.00025888,4]
[366790430,1750456257085,-490.0,0.00025888,4]
[366790431,1750456257095,-490.0,0.00025888,4]
[366790432,1750456257106,-490.0,0.00025888,4]
[366790433,1750456257116,-490.0,0.00025888,4]
[366790434,1750456257126,-490.0,0.00025888,4]
[366790435,1750456257137,-490.0,0.00025888,4]
[366790436,1750456257147,-490.0,0.00025888,4]
[366790437,1750456257157,-490.0,0.00025888,4]
[366790438,1750456257168,-490.0,0.00025888,4]
[366790439,1750456257178,-490.0,0.00025888,4]
[366790440,1750456257193,-490.0,0.00025888,4]
[366790441,1750456257203,-490.0,0.00025888,4]
[366790442,1750456257213,-490.0,0.00025888,4]
[366790443,1750456257222,-161.10829957,0.00025888,4]
[366790444,1750456257233,-813.11,0.00025888,4]
[366790445,1750456257243,-490.0,0.00025888,4]
[366790446,1750456257252,-490.0,0.00025888,4]
[366790447,1750456257263,-300.0,0.00025888,4]
[366790448,1750456257273,-490.0,0.00025888,4]
[366790449,1750456257283,-490.0,0.00025888,4]
[366790450,1750456257292,-490.0,0.00025888,4]
[366790451,1750456257303,-490.0,0.00025888,4]
[366790452,1750456257313,-551.54,0.00025888,4]
[366790453,1750456257323,-490.0,0.00025888,4]
[366790454,1750456257333,-490.0,0.00025888,4]
[366790455,1750456257344,-490.0,0.00025888,4]
[366790456,1750456257354,-490.0,0.00025888,4]
[366790457,1750456257364,-490.25543438,0.00025888,4]
[366790458,1750456257374,-490.0,0.00025888,4]
[366790459,1750456257384,-490.0,0.00025888,4]
[366790460,1750456257393,-490.0,0.00025888,4]
[366790461,1750456257403,-490.0,0.00025888,4]
[366790462,1750456257412,-490.0,0.00025888,4]
[366790463,1750456257423,-816.21,0.00025888,4]
[366790464,1750456257433,-490.0,0.00025888,4]
[366790465,1750456257443,-210.40691214,0.00025888,4]
[366790466,1750456257453,-490.0,0.00025888,4]
[366790467,1750456257464,-490.0,0.00025888,4]
[366790468,1750456257474,-490.0,0.00025888,4]
[366790469,1750456257483,-490.0,0.00025888,4]
[366790470,1750456257494,-490.0,0.00025888,4]
[366790471,1750456257504,-490.0,0.00025888,4]
[366790472,1750456257514,-490.0,0.00025888,4]
[366790473,1750456257524,-676.95,0.00025888,4]
[366790474,1750456257534,-490.0,0.00025888,4]
[366790475,1750456257544,-490.0,0.00025888,4]
[366790476,1750456257554,-490.0,0.00025888,4]
[366790477,1750456257564,-490.0,0.00025888,4]
[366790478,1750456257574,-490.0,0.00025888,4]
[366790479,1750456257583,-490.0,0.00025888,4]
[366790480,1750456257594,-490.0,0.00025888,4]
[366790481,1750456257604,-490.0,0.00025888,4]
[366790482,1750456257614,-490.0,0.00025888,4]
[366790483,1750456257623,-490.0,0.00025888,4]
[366790484,1750456257633,-490.0,0.00025888,4]
[366790485,1750456257644,-490.0,0.00025888,4]
[366790486,1750456257653,-490.0,0.00025888,4]
[366790487,1750456257663,-720.99,0.00025888,4]
[366790488,1750456257673,-500.0,0.00025888,4]
[366790489,1750456257683,-490.0,0.00025888,4]
[366790490,1750456257692,-490.0,0.00025888,4]
[366790491,1750456257702,-490.0,0.00025888,4]
[366790492,1750456257712,-490.0,0.00025888,4]
[366790493,1750456257722,-490.0,0.00025888,4]
[366790494,1750456257731,-490.0,0.00025888,4]
[366790495,1750456257742,-490.0,0.00025888,4]
[366790496,1750456257752,-490.0,0.00025888,4]
[366790497,1750456257762,-490.0,0.00025888,4]
[366790498,1750456257772,-490.0,0.00025888,4]
[366790499,1750456257782,-490.0,0.00025888,4]
[366790500,1750456257791,-490.0,0.00025888,4]
[366790501,1750456257802,-490.0,0.00025888,4]
[366790502,1750456257811,-490.0,0.00025888,4]
[366790503,1750456257821,-490.0,0.00025888,4]
[366790504,1750456257830,-490.0,0.00025888,4]
[366790505,1750456257840,-490.0,0.00025888,4]
[366790506,1750456257850,-497.13,0.00025888,4]
[366790507,1750456257860,-490.0,0.00025888,4]
[366790508,1750456257870,-490.0,0.00025888,4]
[366790509,1750456257881,-490.0,0.00025888,4]
[366790510,1750456257891,-542.45,0.00025888,4]
[366790511,1750456257901,-490.0,0.00025888,4]
[366790512,1750456257911,-794.42,0.00025888,4]
[366790513,1750456257920,-490.0,0.00025888,4]
[366790514,1750456257930,-490.0,0.00025888,4]
[366790515,1750456257940,-490.0,0.00025888,4]
[366790516,1750456257950,-490.0,0.00025888,4]
[366790517,1750456257960,-490.0,0.00025888,4]
[366790518,1750456257970,-598.31,0.00025888,4]
[366790519,1750456257980,-490.0,0.00025888,4]
[366790520,1750456257991,-490.0,0.00025888,4]
[366790521,1750456258001,-490.0,0.00025888,4]
[366790522,1750456258011,-490.0,0.00025888,4]
[366790523,1750456258021,-490.0,0.00025888,4]
[366790524,1750456258030,-490.0,0.00025888,4]
[366790525,1750456258040,-490.0,0.00025888,4]
[366790526,1750456258050,-490.0,0.00025888,4]
[366790527,1750456258061,-490.0,0.00025888,4]
[366790528,1750456258071,-490.0,0.00025888,4]
[366790529,1750456258082,-490.0,0.00025888,4]
[366790530,1750456258092,-490.0,0.00025888,4]
[366790531,1750456258102,-490.0,0.00025888,4]
[366790532,1750456258114,-506.57,0.00025888,4]
[366790533,1750456258124,-490.0,0.00025888,4]
[366790534,1750456258135,-490.0,0.00025888,4]
[366790535,1750456258145,-490.0,0.00025888,4]
[366790536,1750456258155,-506.29,0.00025888,4]
[366790537,1750456258166,-490.0,0.00025888,4]
[366790538,1750456258177,-490.0,0.00025888,4]
[366790539,1750456258189,-490.0,0.00025888,4]
[366790540,1750456258200,-490.0,0.00025888,4]
[366790541,1750456258211,-490.0,0.00025888,4]
[366790542,1750456258221,-561.61,0.00025888,4]
[366790543,1750456258231,-490.0,0.00025888,4]
[366790544,1750456258241,-490.0,0.00025888,4]
[366790545,1750456258251,-490.0,0.00025888,4]
[366790546,1750456258261,-490.0,0.00025888,4]
[366790547,1750456258273,-490.0,0.00025888,4]
[366790548,1750456258283,-490.0,0.00025888,4]
[366790549,1750456258293,-490.0,0.00025888,4]
[366790550,1750456258303,-490.0,0.00025888,4]
[366790551,1750456258313,-573.66,0.00025888,4]
[366790552,1750456258322,-490.0,0.00025888,4]
[366790553,1750456258332,-490.0,0.00025888,4]
[366790554,1750456258343,-490.0,0.00025888,4]
[366790555,1750456258352,-490.0,0.00025888,4]
[366790556,1750456258363,-490.0,0.00025888,4]
[366790557,1750456258375,-490.0,0.00025888,4]
[366790558,1750456258385,-166.0,0.0002589,7]
[366790559,1750456258395,-4006.74569628,0.00025899,2]
[366790560,1750456258406,-170.66987092,0.00025899,2]
[366790561,1750456258417,-1300.0,0.000259,9]
[366790562,1750456258427,-6173.48511833,0.00025909,2]
[366790563,1750456258437,-168.0,0.00025911,2]
[366790564,1750456258447,-11878.68978904,0.00025911,2]
[366790565,1750456258457,-298.22195292,0.00025917,2]
[366790566,1750456258467,-162.69437358,0.00025918,2]
[366790567,1750456258479,-4006.74569628,0.00025927,2]
[366790568,1750456258490,-200.0,0.00025937,2]
[366790569,1750456258500,-500.0,0.00025937,4]
[366790570,1750456258511,-420.29412913,0.00025937,4]
[366790571,1750456258521,-500.0,0.00025937,2]
[366790572,1750456258531,-500.0,0.00025937,4]
[366790573,1750456258542,-1055.5,0.00025937,4]
[366790574,1750456258552,-1086.21,0.00025937,4]
[366790575,1750456258563,-1207.0,0.00025937,4]
[366790576,1750456258573,-500.0,0.00025937,4]
[366790577,1750456258585,-776.21,0.00025937,4]
[366790578,1750456258594,-200.0,0.00025938,2]
[366790579,1750456258604,-282.09641,0.00025942,15]
[366790580,1750456258613,-300.0,0.0002596,2]
[366790581,1750456258624,-300.0,0.0002596,2]
[366790582,1750456258635,-4006.74569628,0.0002596,2]
[366790583,1750456258645,-168.0,0.00025967,2]
[366790584,1750456258655,-6173.48511833,0.0002597,2]
[366790585,1750456258664,-150.0,0.00025974,2]
[366790586,1750456258675,-4006.74569628,0.00025974,2]
[366790587,1750456258685,-983.1083129,0.00025982,2]
[366790588,1750456259262,-490.0,0.00025847,4]
[366790589,1750456259273,-10895.58147614,0.00025982,2]
[366790590,1750456259284,-152.72139541,0.00025984,2]
[366790591,1750456259295,-150.0,0.00025984,2]
[366790592,1750456259305,-150.0,0.00025984,2]
[366790593,1750456259315,-500.0,0.00025984,2]
[366790594,1750456259326,-150.0,0.00025984,2]
[366790595,1750456259336,-500.0,0.00025984,2]
[366790596,1750456259346,-150.0,0.00025984,2]
[366790597,1750456259356,-500.0,0.00025984,2]
[366790598,1750456259366,-150.0,0.00025984,2]
[366790599,1750456259376,-150.0,0.00025984,2]
[366790600,1750456259385,-150.0,0.00025984,2]
[366790601,1750456259395,-150.0,0.00025984,2]
[366790602,1750456259405,-150.0,0.00025984,2]
[366790603,1750456259415,-500.0,0.00025984,2]
[366790604,1750456259424,-500.0,0.00025984,2]
[366790605,1750456259435,-211.96842198,0.00025984,2]
[366790606,1750456259444,-152.1873958,0.00025984,2]
[366790607,1750456259454,-150.0,0.00025984,2]
[366790608,1750456259466,-190.0,0.00025984,2]
[366790609,1750456259476,-150.48273956,0.00025984,2]
[366790610,1750456259486,-500.0,0.00025984,2]
[366790611,1750456259496,-150.0,0.00025984,2]
[366790612,1750456259506,-150.0,0.00025984,2]
[366790613,1750456259515,-48.74606082,0.00025984,2]
[366790614,1750456259528,-451.25393918,0.00025984,2]
[366790615,1750456259539,-152.11962139,0.00025984,2]
[366790616,1750456259549,-500.0,0.00025984,2]
[366790617,1750456259559,-150.0,0.00025984,2]
[366790618,1750456259569,-150.0,0.00025984,2]
[366790619,1750456259578,-150.0,0.00025984,2]
[366790620,1750456259588,-150.0,0.00025984,2]
[366790621,1750456259598,-500.0,0.00025984,2]
[366790622,1750456259608,-150.0,0.00025985,2]
[366790623,1750456259618,-4006.74569628,0.0002599,2]
[366790624,1750456259629,-1000.0,0.00026,3]
[366790625,1750456259639,-1000.0,0.00026,3]
[366790626,1750456259649,-1000.0,0.00026,3]
[366790627,1750456259659,-1796.9136,0.00026,2]
[366790628,1750456259669,-2000.0,0.00026,2]
[366790629,1750456259679,-12842.05,0.00026,2]
[366790630,1750456259690,-4006.74569628,0.00026002,2]
[366790631,1750456259700,-36060.7112665,0.00026007,2]
[366790632,1750456259712,-150.0,0.00026011,2]
[366790633,1750456259722,-150.0,0.00026011,2]
[366790634,1750456259732,-500.0,0.00026011,2]
[366790635,1750456259742,-150.0,0.00026011,2]
[366790636,1750456259751,-500.0,0.00026011,2]
[366790637,1750456259762,-500.0,0.00026011,2]
[366790638,1750456259772,-150.0,0.00026011,2]
[366790639,1750456259782,-158.68574295,0.00026011,2]
[366790640,1750456259791,-252.08639369,0.00026011,2]
[366790641,1750456259801,-150.0,0.00026011,2]
[366790642,1750456259811,-150.0,0.00026011,2]
[366790643,1750456259822,-500.0,0.00026011,2]
[366790644,1750456259832,-500.0,0.00026011,2]
[366790645,1750456259842,-150.0,0.00026011,2]
[366790646,1750456259852,-500.0,0.00026011,2]
[366790647,1750456259862,-500.0,0.00026011,2]
[366790648,1750456259872,-500.0,0.00026011,2]
[366790649,1750456259882,-150.0,0.00026011,2]
[366790650,1750456259892,-289.91052112,0.00026011,2]
[366790651,1750456259902,-500.0,0.00026011,2]
[366790652,1750456259913,-300.0,0.00026012,2]
[366790653,1750456259923,-3207.04671091,0.00026017,2]
[366790654,1750456259934,-4277.6571337,0.00026017,2]
[366790655,1750456259945,-5949.71246151,0.00026017,2]
[366790656,1750456259959,-7827.21516819,0.00026017,2]
[366790657,1750456259970,-11679.0705689,0.00026017,2]
[366790658,1750456259981,-381.76546281,0.00026017,4]
[366790659,1750456260208,-652.93453719,0.00026017,4]
[366790660,1750456260219,-3377.1215162,0.00026017,2]
[366790661,1750456260228,-676.84,0.00026017,4]
[366790662,1750456260239,-188.4925778,0.00026017,2]
[366790663,1750456260249,-3027.9,0.00026017,4]
[366790664,1750456260259,-107168.5156666,0.00026017,2]
[366790665,1750456260270,-41397.78722818,0.00026017,2]
[366790666,1750456271758,201.0,0.00023442,2]
[366790668,1750456645397,150.18,0.00013699,2]
[366790669,1750456645597,150.18,0.00022505,2]
[366790672,1750457210163,-151.0,0.00023442,2]
[366790673,1750457210186,-150.68,0.00023442,2]
[366790674,1750457210208,-11.88185158,0.0002399,2]
[366790677,1750457431683,-151.0,0.00023442,2]
[366790678,1750457431694,-205.0,0.00023924,2]
[366790679,1750457431704,-156.587,0.0002399,2]
[366790680,1750457431715,-1200.0,0.0002403,2]
[366790681,1750457431724,-300.0,0.0002403,2]
[366790682,1750457431734,-14492.36129223,0.00024031,2]
[366790683,1750457431747,-769.59764178,0.00024031,2]
[366790684,1750457431865,-8959.88025159,0.00024031,2]
[366790685,1750457431875,-197.13316532,0.00024031,2]
[366790686,1750457431884,-18026.741594,0.00024031,2]
[366790687,1750457431894,-153.12189281,0.00024048,2]
[366790688,1750457431904,-567.54,0.00024121,2]
[366790689,1750457431915,-567.54,0.00024121,2]
[366790690,1750457431925,-567.54,0.00024121,2]
[366790691,1750457431935,-567.54,0.00024121,2]
[366790692,1750457431945,-567.54,0.00024121,2]
[366790693,1750457431955,-289.91,0.00024121,2]
[366790694,1750457431965,-150.0,0.0002413,2]
[366790695,1750457431975,-11772.5549235,0.00024131,2]
[366790696,1750457431985,-78805.48114629,0.00024131,2]
[366790697,1750457431998,-1545.1540458,0.00024131,2]
[366790698,1750457432010,-1045.85852157,0.00024131,2]
[366790699,1750457432145,-893.98864636,0.00024131,2]
[366790700,1750457432158,-3188.1155704,0.00024131,2]
[366790701,1750457432171,-849.83407237,0.00024131,2]
[366790702,1750457432183,-600.0,0.00024131,2]
[366790703,1750457432196,-488.00824784,0.00024131,2]
[366790704,1750457432212,-871.91188984,0.00024131,2]
[366790707,1750457432262,-372.99804426,0.00024131,2]
[366790710,1750457432287,-1858.00000002,0.00024131,2]
[366790753,1750457437668,-210.31106662,0.0002413,2]
[366790754,1750457437679,-389.68893338,0.0002413,2]
[366790755,1750457437692,-110.31106662,0.0002413,2]
[366790757,1750457437703,-472.50289326,0.0002413,2]
[366790758,1750457437778,-27.49710674,0.0002413,2]
[366790759,1750457437789,-500.0,0.0002413,2]
[366790760,1750457437799,-500.0,0.0002413,2]
[366790761,1750457437810,-500.0,0.0002413,2]
[366790762,1750457437821,-500.0,0.0002413,2]
[366790763,1750457437832,-272.50289326,0.0002413,2]
[366790764,1750457437855,-227.49710674,0.0002413,2]
[366790765,1750457437866,-500.0,0.0002413,2]
[366790766,1750457437876,-62.03008603,0.0002413,2]
[366790767,1750457437889,-437.96991397,0.0002413,2]
[366790768,1750457437899,-500.0,0.0002413,2]
[366790769,1750457437910,-242.50869473,0.0002413,2]
[366790770,1750457437923,-257.49130527,0.0002413,2]
[366790771,1750457437934,-500.0,0.0002413,2]